Cogmind - Beta 11.1 @@@ ROGUE MODE // 2022.05.10 @ 18:02:39 Player: Sara Result: Self-destructed Performance ------------- Evolutions (2) 1000 Regions Visited (5) 1000 Robots Destroyed (43) 215 Value Destroyed (968) 968 Prototype IDs (1) 20 Alien Tech Used (0) 0 Bonus (-111) -111 TOTAL SCORE: 3092 Bonus ------- Follower Combat Kills 77 Friendly Fire -188 Cogmind --------- Core Integrity 460/550 Matter 276/300 Energy 100/100 System Corruption 0% Temperature Hot (228) Movement Treading (160) Location -8/Materials Parts ------- > --- POWER (1) -------- (None) > --- PROPULSION (3) --- Light Treads > --- UTILITY (4) ------ Large Storage Unit Improved Signal Interpreter Advanced Targeting Computer > --- WEAPON (3) ------- (None) > --- INVENTORY (15) --- Light Ion Engine Seismic Detector Energy Filter Energy Filter Hardened Medium Armor Plating Small Laser Small Laser Light Cannon Rocket Launcher Makeshift Hammer Peak State ------------ > --- POWER ------------ Improved Deuterium Engine > --- PROPULSION ------- Light Treads Aluminum Leg > --- UTILITY ---------- Large Storage Unit Improved Signal Interpreter Advanced Targeting Computer Energy Filter > --- WEAPON ----------- Arc Projector Arc Projector Arc Projector > --- INVENTORY -------- Light Ion Engine Seismic Detector Energy Filter Energy Filter Hardened Medium Armor Plating Small Laser Small Laser Light Cannon Rocket Launcher Makeshift Hammer [Rating: 31] Favorites ----------- Power Ion Engine Engine Ion Engine Propulsion Wheel Treads Light Treads Leg Aluminum Leg Wheel Wheel Utility Large Storage Unit Device Heat Sink Storage Large Storage Unit Processor Terrain Scan Processor Weapon Assault Rifle Energy Gun Small Laser Ballistic Gun Assault Rifle Launcher Rocket Launcher Build | -11 -10 -10 -9 -9 -8 ------- Run | Scr Mat Min Mat Min Mat Slots Evolved 4 | . . . 2 . 2 Power . | . . . . . . Propulsion 1 | . . . 1 . . Utility 2 | . . . . . 2 Weapon 1 | . . . 1 . . Parts Attached 42 | 4 12 2 2 8 14 Power 3 | 1 1 . . . 1 Engine 3 | 1 1 . . . 1 Core . | . . . . . . Reactor . | . . . . . . Propulsion 11 | 2 2 2 1 2 2 Treads 3 | . . . . 2 1 Leg 1 | . . . . . 1 Wheel 7 | 2 2 2 1 . . Hover . | . . . . . . Flight . | . . . . . . Utility 11 | 1 3 . . 1 6 Device 4 | . 1 . . 1 2 Storage 3 | 1 2 . . . . Processor 4 | . . . . . 4 Hackware . | . . . . . . Protection . | . . . . . . Artifact . | . . . . . . Weapon 17 | . 6 . 1 5 5 Energy Gun 11 | . 4 . . 3 4 Energy Cannon . | . . . . . . Ballistic Gun 4 | . 2 . 1 1 . Ballistic Cannon . | . . . . . . Launcher 2 | . . . . 1 1 Special Weapon . | . . . . . . Impact Weapon . | . . . . . . Slashing Weapon . | . . . . . . Piercing Weapon . | . . . . . . Special Melee Weapon . | . . . . . . Unidentified Prototypes 1 | . . . . 1 . Parts Lost 22 | . 3 . . 7 12 Power 2 | . . . . 1 1 Propulsion 9 | . 3 . . 2 4 Utility 3 | . . . . 1 2 Weapon 8 | . . . . 3 5 Highest Loss Streak 7 | . 2 . . 7 6 To Critical Strikes . | . . . . . . Average Slot Usage (%) 90 | . 92 92 99 85 87 Engine 10 | . 14 14 11 6 5 Treads 5 | . . . . 7 13 Leg 1 | . . . . . 3 Wheel 18 | . 24 21 33 25 4 Device 9 | . 10 14 11 6 8 Storage 11 | . 14 14 11 11 9 Processor 5 | . . . . . 18 Energy Gun 12 | . 11 . . 9 25 Ballistic Gun 14 | . 16 28 32 18 . Naked Turns . | . . . . . . Heaviest Build 45 | 8 30 30 32 34 45 Greatest Support 40 | 26 26 26 36 40 40 Greatest Overweight (x) 3 | . 2 1 . 1 3 Average Overweight (x) . | . . 1 . . . Largest Inventory Capacity 15 | 8 15 15 15 15 15 Average Capacity 14 | 6 14 15 15 15 15 Most Carried 15 | 8 15 15 14 14 14 Average Carried 12 | 5 12 14 13 12 9 Final Capacity 15 | 8 15 15 15 15 15 Final Carried 15 | 8 15 15 13 10 10 Class Distribution -------------------- 55% | Mutant 15% | Gunner 14% | Scavenger-Skirmisher 10% | Scavenger-Gunner Dominant Class ---------------- Mutant | -10/Materials Mutant | -10/Mines Scavenger-Gunner | -9/Materials Gunner | -9/Mines Scavenger-Skirmisher | -8/Materials Resources | -11 -10 -10 -9 -9 -8 ----------- Run | Scr Mat Min Mat Min Mat Matter Collected 820 | 240 254 58 92 59 117 Remotely . | . . . . . . Salvage Created 1208 | . 759 62 106 50 231 Parts 78 | . 37 7 9 11 14 Haulers Intercepted 1 | . 1 . . . . Recyclers Shooed 3 | . 2 . . . 1 Parts Field Recycled . | . . . . . . Retrieved Matter . | . . . . . . Parts Self-Destructed . | . . . . . . Prevented . | . . . . . . Kills | -11 -10 -10 -9 -9 -8 ------- Run | Scr Mat Min Mat Min Mat Combat Hostiles Destroyed 30 | . 12 1 4 5 8 Guns 19 | . 12 1 2 1 3 AOE 11 | . . . 2 4 5 Classes Destroyed 10 | . 7 1 . . 2 Worker 3 | . 2 . 1 . . Builder 3 | . . 1 1 1 . Tunneler 2 | . 1 . 1 . . Hauler 1 | . 1 . . . . Recycler 2 | . 2 . . . . Watcher 2 | . 1 . . . 1 Swarmer 12 | . 3 . 2 4 3 Grunt 15 | . 9 1 2 1 2 Sentry 1 | . . . . . 1 Specialist 2 | . . . . . 2 Best Kill Streak 6 | . 6 1 5 4 5 Combat Bots Only 4 | . 3 1 2 4 4 Max Kills in Single Turn 5 | . 2 1 5 3 2 Gunslinging . | . . . . . . Exploded 3 | . . . 2 3 2 Melee . | . . . . . . Uniques/NPCs Destroyed . | . . . . . . Combat | -11 -10 -10 -9 -9 -8 -------- Run | Scr Mat Min Mat Min Mat Damage Taken 2232 | . 492 . 42 512 1186 Core 319 | . 103 . 20 106 90 Absorbed by Shields . | . . . . . . Core Remaining (%) 75 | 100 . 58 . 68 . Volleys Fired 86 | . 45 6 9 5 21 Largest 3 | . 2 2 3 3 3 Hottest 165 | . 90 40 60 120 165 Shots Fired 188 | . 90 12 27 11 48 Gun 182 | . 90 12 27 9 44 Cannon . | . . . . . . Launcher 6 | . . . . 2 4 Special . | . . . . . . Kinetic 89 | . 50 12 27 . . Thermal 65 | . 30 . . 9 26 Explosive 6 | . . . . 2 4 Electromagnetic 28 | . 10 . . . 18 Robot Hit Streak 22 | . 22 6 3 3 18 Robot Miss Streak 3 | . 2 1 3 2 3 Penetration Max . | . . . . . . Secondary Targets 2 | . 2 . . . . Max Gunslinging Chain 1 | . 1 . . . . Shots Hit Robots 124 | . 64 10 9 6 35 Core Hits 73 | . 32 3 8 10 20 Critical Kills . | . . . . . . Critical Parts Destroyed . | . . . . . . Critical Strikes . | . . . . . . Melee Attacks . | . . . . . . Impact . | . . . . . . Slashing . | . . . . . . Piercing . | . . . . . . Sneak Attacks . | . . . . . . Combat Hostiles . | . . . . . . Follow-up Attacks . | . . . . . . Damage Inflicted 3013 | . 796 132 712 344 1029 Guns 1536 | . 796 132 112 71 425 Cannons . | . . . . . . Explosions 1467 | . . . 600 263 604 Melee . | . . . . . . Ramming 10 | . . . . 10 . Kinetic 639 | . 395 132 112 . . Thermal 689 | . 285 . . 71 333 Explosive 1360 | . . . 600 263 497 Electromagnetic 315 | . 116 . . . 199 Impact . | . . . . . . Slashing . | . . . . . . Piercing . | . . . . . . Highest Corruption . | . . . . . . Average Corruption . | . . . . . . Corruption Purged . | . . . . . . Corruption Blocked . | . . . . . . Overload Shots . | . . . . . . Overflow Damage 22 | . . . 22 . . Projectiles . | . . . . . . Explosions 22 | . . . 22 . . Melee . | . . . . . . Knockbacks . | . . . . . . Impact . | . . . . . . Kinetic . | . . . . . . Secondary . | . . . . . . Self-Inflicted Damage . | . . . . . . Shots . | . . . . . . Rammed 1 | . . . . 1 . Targets Rammed 1 | . . . . 1 . Kicked . | . . . . . . Crushed . | . . . . . . Highest Temperature 444 | . 222 . . 104 444 Average Temperature 145 | . 88 . . 53 197 Received Heat Transfer 396 | . 156 . 21 30 189 Effects 2 | . . . . . 2 Energy Bleed 2 | . . . . . 2 Siege Activations . | . . . . . . Robots Corrupted . | . . . . . . Combat Hostiles . | . . . . . . Parts Fried . | . . . . . . Impact Corruptions . | . . . . . . Robots Melted . | . . . . . . Combat Hostiles . | . . . . . . Parts Melted 4 | . 3 . . . 1 Heat Transferred 1509 | . 709 . . 150 650 Parts Sabotaged . | . . . . . . Parts Stolen . | . . . . . . Parts Stripped . | . . . . . . Power Chain Reactions 1 | . . . . . 1 Missiles Intercepted . | . . . . . . Alert | -11 -10 -10 -9 -9 -8 ------- Run | Scr Mat Min Mat Min Mat Peak Influence 418 | . 360 182 418 285 299 Initial 162 | . . 87 63 162 105 Average 161 | . 171 116 181 250 155 Maximum Alert Level 2 | . 1 . 2 1 1 Low Security (%) 68 | 100 62 100 68 12 74 Level 1 31 | . 37 . 30 87 25 Level 2 . | . . . 1 . . Level 3 . | . . . . . . Level 4 . | . . . . . . Level 5 . | . . . . . . High Security . | . . . . . . Max Security . | . . . . . . Squads Dispatched 8 | . 3 1 1 1 2 Investigation 2 | . 1 1 . . . Extermination . | . . . . . . Reinforcement 6 | . 2 . 1 1 2 Assault . | . . . . . . Garrison . | . . . . . . Intercept . | . . . . . . Searches Triggered . | . . . . . . Construction Impeded 1 | . . . . 1 . Haulers Reinforced . | . . . . . . Active Scanning Responses . | . . . . . . Cargo Convoy Interrupts . | . . . . . . Stealth | -11 -10 -10 -9 -9 -8 --------- Run | Scr Mat Min Mat Min Mat Distress Signals 5 | . 3 . . . 2 Communications Jammed . | . . . . . . Distress Signals . | . . . . . . Times Spotted 58 | . 23 2 8 6 19 Peak Tracking Total 9 | . 5 2 3 4 9 Tactical Retreats 3 | . 1 . . 1 1 Traps | -11 -10 -10 -9 -9 -8 ------- Run | Scr Mat Min Mat Min Mat Traps Triggered . | . . . . . . Indirectly . | . . . . . . Trap Hack Attempts . | . . . . . . Triggered . | . . . . . . Disarmed . | . . . . . . Reprogrammed . | . . . . . . Reused . | . . . . . . Traps Extracted . | . . . . . . Installed . | . . . . . . Triggered . | . . . . . . Machines | -11 -10 -10 -9 -9 -8 ---------- Run | Scr Mat Min Mat Min Mat Machines Disabled 4 | . . . 4 . . Max in Single Turn 2 | . . . 2 . . Machines Sabotaged . | . . . . . . Garrisons Compromised . | . . . . . . Overloaded Fab Kills . | . . . . . . Hacking | -11 -10 -10 -9 -9 -8 --------- Run | Scr Mat Min Mat Min Mat Machines Accessed 5 | . 2 1 1 . 1 Terminals 4 | . 1 1 1 . 1 Fabricators . | . . . . . . Repair Stations . | . . . . . . Recycling Units 1 | . 1 . . . . Scanalyzers . | . . . . . . Garrison Access . | . . . . . . Total Hacks 16 | . 4 7 3 . 2 Successful 7 | . 1 3 1 . 2 Failed 9 | . 3 4 2 . . Catastrophic 2 | . 1 1 . . . Database Lockouts . | . . . . . . Manual 14 | . 2 8 3 . 1 Terminals 14 | . 2 7 3 . 2 Fabricators . | . . . . . . Repair Stations . | . . . . . . Recycling Units 2 | . 2 . . . . Scanalyzers . | . . . . . . Garrison Access . | . . . . . . Terminal Hacks 3 | . . 2 . . 1 Robot Analysis 3 | . . 2 . . 1 Fabricator Hacks . | . . . . . . Repair Station Hacks . | . . . . . . Recycling Unit Hacks 1 | . 1 . . . . Retrieve Components 1 | . 1 . . . . Scanalyzer . | . . . . . . Garrison Access Hacks . | . . . . . . Unauthorized Hacks 3 | . . 1 1 . 1 Terminals 3 | . . 1 1 . 1 Assimilate 2 | . . . 1 . 1 Botnet 1 | . . 1 . . . Fabricators . | . . . . . . Repair Stations . | . . . . . . Recycling Units . | . . . . . . Scanalyzers . | . . . . . . Garrison Access . | . . . . . . Data Cores Recovered . | . . . . . . Used . | . . . . . . Hacking Detections 5 | . 2 1 1 . 1 Full Trace Events 2 | . 1 1 . . . Feedback Events . | . . . . . . Feedback Blocked . | . . . . . . Robot Schematics Acquired . | . . . . . . Robots Built . | . . . . . . Authchips . | . . . . . . Time . | . . . . . . Total Robot Build Rating . | . . . . . . Part Schematics Acquired . | . . . . . . Parts Built . | . . . . . . Authchips . | . . . . . . Time . | . . . . . . Total Part Build Rating . | . . . . . . Parts Repaired . | . . . . . . Time . | . . . . . . Parts Recycled . | . . . . . . Recycled Matter . | . . . . . . Retrieved Matter . | . . . . . . Retrieved Components 10 | . 10 . . . . Parts Scanalyzed . | . . . . . . Part Schematics Acquired . | . . . . . . Parts Damaged . | . . . . . . Bothacking | -11 -10 -10 -9 -9 -8 ------------ Run | Scr Mat Min Mat Min Mat Used RIF Installer . | . . . . . . Robots Hacked . | . . . . . . Non-combat . | . . . . . . Combat . | . . . . . . Robot Hacks Applied . | . . . . . . Relay Couplers Released . | . . . . . . Fabnet Peak Effective % . | . . . . . . Robots Rewired . | . . . . . . Allies Hacked . | . . . . . . Hacks Repelled . | . . . . . . Allies | -11 -10 -10 -9 -9 -8 -------- Run | Scr Mat Min Mat Min Mat Total Allies 5 | . . 3 1 . 1 Largest Group 3 | . . 3 2 1 1 Highest-Rated Group 76 | . . 76 41 10 10 Highest-Rated Ally 31 | . . 31 31 10 10 Total Orders . | . . . . . . Ally Attacks 22 | . . 9 13 . . Total Damage 295 | . . 107 188 . . Kills 3 | . . 2 1 . . Allies Corrupted . | . . . . . . Allies Melted . | . . . . . . Intel | -11 -10 -10 -9 -9 -8 ------- Run | Scr Mat Min Mat Min Mat Robot Analysis Total 3 | . . 2 . . 1 Derelict Logs Recovered 3 | . . 2 . 1 . Drone Launches . | . . . . . . Drone Recoveries . | . . . . . . Exploration | -11 -10 -10 -9 -9 -8 ------------- Run | Scr Mat Min Mat Min Mat Turns Passed 1797 | 57 521 323 130 218 548 Spaces Moved 1065 | 51 307 249 91 184 183 Core 7 | 7 . . . . . Treads 208 | . . . . 29 179 Legs 4 | . . . . . 4 Wheels 846 | 44 307 249 91 155 . Hover . | . . . . . . Flight . | . . . . . . Fastest Speed 50 | 50 90 95 86 86 160 Average Speed 118 | 84 101 104 86 98 209 Slowest Speed 330 | 100 115 115 86 160 330 Overloaded Moves . | . . . . . . Propulsion Burnouts . | . . . . . . Robots Hopped . | . . . . . . Cave-ins Triggered . | . . . . . . Exploration Rate (%) 25 | 4 40 48 16 29 14 Regions Visited 5 Branch Regions 2 Pre-discovered Areas 1 | . . 1 . . . Known Exits Taken 1 | . . . . 1 . Unknown Exits Taken 4 | 1 1 1 1 . . Scrap Searched 2 | . . 1 . 1 . Spaces Dug . | . . . . . . Terrain Destroyed 97 | . . . 44 13 40 Melee . | . . . . . . Projectile . | . . . . . . AOE 97 | . . . 44 13 40 Terrain Rammed . | . . . . . . Walls Destroyed . | . . . . . . Machines Disabled . | . . . . . . Actions | -11 -10 -10 -9 -9 -8 --------- Run | Scr Mat Min Mat Min Mat Total 1427 | 63 429 300 122 211 302 Wait 185 | . 42 35 21 11 76 Move 1060 | 50 306 248 90 183 183 Hop . | . . . . . . Pick Up 38 | 9 15 4 . 2 8 Fast Attach 12 | 3 4 1 . 1 3 Attach 20 | 1 6 . 2 5 6 Detach . | . . . . . . Swap 10 | . 2 1 . 2 5 Drop 15 | . 9 5 . 1 . Fire 86 | . 45 6 9 5 21 Melee . | . . . . . . Ram . | . . . . . . Kick . | . . . . . . Crush 1 | . . . . 1 . Escape Stasis . | . . . . . . Rewire . | . . . . . . Trap . | . . . . . . Miscellaneous . | . . . . . . Route ------- -11/Scrapyard -10/Materials (discovered 2 exits: *Mat / *Min) -10/Mines -9/Materials -9/Mines (discovered 2 exits: *Mat x2) -8/Materials History --------- Turn | Location | Event 22 | -11/Scrapyard | Discovered new exit (range 16) 58 | -11/Scrapyard | Entered Materials 255 | -10/Materials | Discovered new exit (range 15) 321 | -10/Materials | Build established: Mutant 568 | -10/Materials | Discovered new exit (range 9) 579 | -10/Materials | Entered Mines 582 | -10/Mines | Received a Mining Laser from a helpful Derelict 596 | -10/Mines | Learned location of Zion (-6) 670 | -10/Mines | Learned Materials trap positions 829 | -10/Mines | A weapon hastily lodged in a ceiling crevice suddenly fell to the ground 861 | -10/Mines | Discovered new exit (range 6) 902 | -10/Mines | Entered Materials 902 | -9/Materials | Accompanied by 1 ally 902 | -9/Materials | Evolved 2 slots: Propulsion x1, Weapon x1 903 | -9/Materials | Loaded intel: 23 trap records 907 | -9/Materials | Led the pair of lost Derelicts to an unsafe place 1007 | -9/Materials | Discovered new exit (range 8) 1032 | -9/Materials | Entered Mines 1032 | -9/Mines | Accompanied by 1 ally 1039 | -9/Mines | Received a Rocket Launcher from a helpful Derelict 1057 | -9/Mines | Discovered new exit (range 10) 1103 | -9/Mines | Identified exit to Materials 1109 | -9/Mines | Found a damaged Exp. Sensor Array with a note attached 1113 | -9/Mines | Found Prototype Device 1113 | -9/Mines | Identified Exp. Sensor Array 1140 | -9/Mines | Assembled infested the area 1209 | -9/Mines | Lost 7 parts (1p2n1u3w) 1250 | -9/Mines | Entered Materials 1250 | -8/Materials | Evolved 2 slots: Utility x2 1581 | -8/Materials | Lost 6 parts (3n1u2w) 1798 | -8/Materials | Self-destructed Last Messages --------------- 01620_ R-06 Scavenger collects VSS Leg. 01621_ R-06 Scavenger collects Shotgun. 01621_ K-01 Serf cleans the Terminal. 01663_ K-01 Serf cleans the Electrolysis Chamber. 01752_ ALERT: Suspicious intruders detected, dispatching Specialist reinforcements to area. 01774_ H-61 Shepherd shuts down. 01787_ Imp. Deuterium Engine destroyed. 01788_ Penetrated by Slug. 01788_ Arc Projector destroyed. 01790_ Slug penetrates Wall. 01791_ Penetrated by Slug. 01793_ Slug penetrates Wall. 01794_ Penetrated by Slug. 01794_ Energy Filter destroyed. 01794_ Aluminum Leg destroyed. 01795_ Slug penetrates Wall. 01795_ Arc Projector destroyed. 01796_ Penetrated by Slug. 01797_ Arc Projector destroyed. Map ----- +----------------------------------------------------+ | ??????????????????#######################?######## | | ??????????????????# ##?#?################## | | ??????????????????#""" ########### # ######### | | ??????????????????#""" # ############### | | ??????????????????#""" # ##### | | ??????????????????# + T ! | | ??????????????????#""" # ! | | ??????????????????#""" # ####### %""" | | ??????????????????#""" ########?#### """"" | | ???????##########?# ######?###### """"" | | ???????? ##+#########??#?###** """"" | | ???????????????# ##?###??########* """ | | ???????????????# #?#?? ?###?###! | | ???????????????# #?# ??####### | | ???????????????# #?#? ""? ?##?#?#[ | | ???????????????# ### """ ###??## ####### | | ???????????????# + ?"""?########### ####### | | ???????????????# #? ? ###??### # # #### | | ????????????#### ###+#####?###### # # #### | | ???????????##!! #####?##? # ##### | | ???????????#! ########## =% # #### | | ???????????#! ######### # #### | | ???????????#! #?# % ##### | | ???????????#! ########## ##### #???!! [ !% ?? | | ???????????##!!??????####/###?#??###!! ? | | ????????????###??????# %@ #? #?? # | | ?????????????????????# ;g ##?/## ? | | ?????????????????????# g hH | | ?????????????????????# %# ###+##??####?# ? | | ?????????????????????# %u#? #???????? ???#? | | ?????????????????????# x #?? ##?????????? #? ? | | ?????????????????????#+###x##??? #?????????????#?? | | ?????????????????????# ??? ?????#??????????????? | | ????????????????????? ??? r?????????????????????? | | ????????????????????##???? ????????????????????? | | ?????????????????????????? #????????????????????? | | ?????????????????????????? #????????????????????? | | ?????????????????????????? m/????????????????????? | | ?????????????????????????? #????????????????????? | | ??????????????????????????? #????????????????????? | | ???????????????????????????##????????????????????? | | ?????????????????????????????????????????????????? | | ?????????????????????????????????????????????????? | | ?????????????????????????????????????????????????? | | ?????????????????????????????????????????????????? | | ?????????????????????????????????????????????????? | | ?????????????????????????????????????????????????? | | ?????????????????????????????????????????????????? | | ?????????????????????????????????????????????????? | | ?????????????????????????????????????????????????? | +----------------------------------------------------+ Best States ------------- Heat Dissipation 38 Energy Generation 16 Energy Capacity 290 Matter Stores 300 Matter Capacity 300 Sight Range 16 Robot Scan Range 20 Terrain Scan Range 16 Terrain Scan Density 160 Evasion (%) 42 Targeting Accuracy 8 Recoil Reduction 2 Energy Filtering 30 Item Schematics ----------------- None Robot Schematics ------------------ None Fabricated ------------ Nothing Alien Tech Used ----------------- None Achievements -------------- None Challenges ------------ None Game ------ Seed ImpactGravmagExtractor Manual? 0 Play Time 00:19:48 Cumulative 101.8 hours Start 2022.05.10 @ 17:46:16 End 2022.05.10 @ 18:02:39 Sessions 1 Manual Loads 0 Difficulty Rogue Special Mode None Game No. 131 Rogue 131 Adventurer 0 Explorer 0 Win Type - Total 1 Types 1/0/0/0/0/0/0/0/0 Lore% 58 Gallery% 55 Achievement% 48 Wizard Run 0 Options --------- ASCII 0 Keyboard 0 Movement Numpad Keybinds 0 Fullscreen 1 Font 18/X11Bold Map View 76x50 Tactical HUD 1 Map Filters NONE Filters NONE Steam X RUN: 84d252fa-574c-47ea-96fb-a1ffb79861a0